[Event "14th Chennai GM Open 2023"]
[Site "Chennai"]
[Date "2024.01.02"]
[Round "4.7"]
[White "Khusenkhojaev, Muhammad"]
[Black "Kolla Bhaavan"]
[Result "1-0"]
[ECO "A64"]
[WhiteElo "2366"]
[BlackElo "1679"]
[Annotator "RC"]
[PlyCount "169"]
[EventDate "2023.12.31"]
[EventType "swiss"]
[EventCountry "IND"]
[SourceTitle "playchess.com"]
[Source "ChessBase"]
[SourceQuality "1"]
[TimeControl "5400+30"]

1. d4 {[%emt 0:02:16]} Nf6 {[%emt 0:02:48]} 2. c4 {[%emt 0:00:07]} e6 {[%emt 0:02:34]} 3. g3 {[%emt 0:01:35]} c5 {[%emt 0:01:59]} 4. d5 {[%emt 0:00:43]} exd5 {[%emt 0:00:08]} 5. cxd5 {[%emt 0:00:04]} d6 {[%emt 0:00:05]} 6. Nc3 {[%emt 0:00:05]} g6 {[%emt 0:00:05]} 7. Bg2 {[%emt 0:00:07]} Bg7 {[%emt 0:00:05]} 8. Nf3 {[%emt 0:00:04]} O-O {[%emt 0:00:07]} 9. O-O {[%emt 0:00:03]} Re8 {[%emt 0:00:58]} 10. Nd2 {[%emt 0:00:57]} a6 {[%emt 0:03:26]} 11. a4 {[%emt 0:00:48]} Nbd7 {[%emt 0:00:06]} 12. h3 {[%emt 0:00:09]} Rb8 {[%emt 0:08:47]} 13. Nc4 {[%emt 0:01:13]} Ne5 {[%emt 0:15:27]} 14. Na3 {[%emt 0:00:08]} Nh5 {[%emt 0:01:55]} 15. e4 {[%emt 0:00:14]} Bd7 {[%emt 0:05:32]} 16. a5 {[%emt 0:00:58]} Qxa5 {[%emt 0:20:41]} 17. g4 {[%emt 0:02:55]} Nf6 {[%emt 0:02:08]} 18. f4 {[%emt 0:00:14]} Nexg4 {[%emt 0:07:44]} 19. hxg4 {[%emt 0:00:06]} Nxg4 {[%emt 0:00:16]} 20. f5 {[%emt 0:00:10]} h5 {[%emt 0:07:19]} 21. Bg5 {[%emt 0:07:01]} Qb4 {[%emt 0:09:04]} 22. Qd2 {[%emt 0:03:27]} Qd4+ {[%emt 0:01:56]} 23. Kh1 {[%emt 0:00:48]} Qxd2 {[%emt 0:03:07]} 24. Bxd2 {[%emt 0:00:06]} b5 {[%emt 0:00:08]} 25. fxg6 {[%emt 0:01:23]} fxg6 {[%emt 0:00:08]} 26. Nd1 {[%emt 0:00:30]} Ne5 {[%emt 0:02:16]} 27. Bf4 {[%emt 0:02:37]} Rf8 {[%emt 0:03:03]} 28. Nc2 {[%emt 0:01:06]} Rb6 {[%emt 0:00:43]} 29. Bxe5 {[%emt 1:15:06]} Rxf1+ {[%emt 0:00:22]} 30. Bxf1 {[%emt 0:00:00]} Bxe5 {[%emt 0:00:10]} 31. Nce3 {[%emt 0:00:00]} Bc8 {[%emt 0:00:37]} 32. Rc1 {[%emt 0:00:00]} Bd7 {[%emt 0:01:33]} 33. Rc2 {[%emt 0:00:00]} a5 {[%emt 0:00:39]} 34. Nf2 {[%emt 0:00:00]} Bd4 {[%emt 0:00:29]} 35. Ned1 {[%emt 0:00:00]} a4 {[%emt 0:00:36]} 36. Bh3 {[%emt 0:00:00]} Bxh3 {[%emt 0:00:32]} 37. Nxh3 {[%emt 0:00:00]} b4 {[%emt 0:00:09]} 38. Nf4 {[%emt 0:00:00]} b3 {[%emt 0:00:57]} 39. Rg2 {[%emt 0:00:00]} c4 {[%emt 0:00:33]} 40. Ne2 {[%emt 0:00:00]} Be5 {[%emt 0:00:43]} 41. Nec3 {[%emt 0:00:00]} Ra6 {[%emt 0:00:32]} 42. Nb1 {[%emt 0:00:00]} Rb6 {[%emt 0:00:29]} 43. Na3 {[%emt 0:00:00]} Rb4 {[%emt 0:00:08]} 44. Rxg6+ {[%emt 0:00:00]} Kf7 {[%emt 0:00:07]} 45. Re6 {[%emt 0:00:00]} Bxb2 {[%emt 0:01:13]} 46. Nxb2 {[%emt 0:00:00]} c3 {[%emt 0:00:04]} 47. e5 {[%emt 0:00:00]} cxb2 {[%emt 0:00:41]} 48. exd6 {[%emt 0:00:00]} Rb7 {[%emt 0:00:39]} 49. Kg2 {[%emt 0:00:00]} b1=Q {[%emt 0:00:39]} 50. Nxb1 {[%emt 0:00:00]} b2 {[%emt 0:00:05]} 51. Re2 {[%emt 0:00:00]} Rb6 {[%emt 0:00:51]} 52. Re7+ {[%emt 0:00:00]} Kf8 {[%emt 0:00:16]} 53. Re6 {[%emt 0:00:00]} Rb7 {[%emt 0:00:36]} 54. Re4 {[%emt 0:00:00]} Rd7 {[%emt 0:00:42]} 55. Re6 {[%emt 0:00:00]} Rb7 {[%emt 0:00:20]} 56. Re2 {[%emt 0:00:00]} Kf7 {[%emt 0:00:39]} 57. Kf2 {[%emt 0:00:00]} Kf6 {[%emt 0:00:31]} 58. Re6+ {[%emt 0:00:00]} Kf7 {[%emt 0:00:05]} 59. Re4 {[%emt 0:00:00]} Rd7 {[%emt 0:00:43]} 60. Re6 {[%emt 0:00:00]} Rb7 {[%emt 0:00:30]} 61. Re2 {[%emt 0:00:00]} Rb5 {[%emt 0:00:40]} 62. Re5 {[%emt 0:00:00]} Rb6 {[%emt 0:00:32]} 63. Re7+ {[%emt 0:00:00]} Kf6 {[%emt 0:00:30]} 64. Re6+ {[%emt 0:00:00]} Kf7 {[%emt 0:00:19]} 65. d7 {[%emt 0:00:00]} Rb8 {[%emt 0:00:30]} 66. Re2 {[%emt 0:00:00]} Rd8 {[%emt 0:00:34]} 67. Rxb2 {[%emt 0:00:00]} Rxd7 {[%emt 0:00:16]} 68. Rb5 {[%emt 0:00:00]} Kf6 {[%emt 0:00:41]} 69. Ke3 {[%emt 0:00:00]} Ke5 {[%emt 0:00:08]} 70. Nc3 {[%emt 0:00:00]} Ra7 {[%emt 0:00:58]} 71. Rb2 {[%emt 0:00:27]} a3 {[%emt 0:00:23]} 72. Ra2 {[%emt 0:00:14]} Ra5 {[%emt 0:00:39]} 73. Kd3 {[%emt 0:00:11]} h4 {[%emt 0:00:33]} 74. Kc4 {[%emt 0:00:39]} Ra8 {[%emt 0:00:27]} 75. Re2+ {[%emt 0:00:32]} Kd6 {[%emt 0:00:28]} 76. Ne4+ {[%emt 0:04:20]} Kc7 {[%emt 0:00:20]} 77. Kb3 {[%emt 0:00:34]} h3 {[%emt 0:00:42]} 78. Ka2 {[%emt 0:03:42]} Re8 {[%emt 0:00:24]} 79. Rc2+ {[%emt 0:00:41]} Kd8 {[%emt 0:00:25]} 80. Nd6 {[%emt 0:01:30]} Re3 {[%emt 0:00:33]} 81. Nb7+ {[%emt 0:00:30]} Kd7 {[%emt 0:00:38]} 82. d6 {[%emt 0:00:05]} h2 {[%emt 0:00:33]} 83. Rxh2 {[%emt 0:00:18]} Kc6 {[%emt 0:00:07]} 84. Rd2 {[%emt 0:00:53]} Rh3 {[%emt 0:00:49]} 85. d7 {[%emt 0:00:10]} 1-0

[Event "14th Chennai GM Open 2023"]
[Site "Chennai"]
[Date "2024.01.02"]
[Round "4.8"]
[White "Manik, Mikulas"]
[Black "Sriram Adarsh Uppala"]
[Result "1-0"]
[ECO "B31"]
[WhiteElo "2343"]
[BlackElo "1900"]
[Annotator "RC"]
[PlyCount "91"]
[EventDate "2023.12.31"]
[EventType "swiss"]
[EventCountry "IND"]
[SourceTitle "playchess.com"]
[Source "ChessBase"]
[SourceQuality "1"]
[TimeControl "5400+30"]

1. e4 {[%emt 0:00:03]} c5 {[%emt 0:00:31]} 2. Nf3 {[%emt 0:00:09]} Nc6 {[%emt 0:00:35]} 3. Nc3 {[%emt 0:00:06]} Nf6 {[%emt 0:00:06]} 4. Bb5 {[%emt 0:00:09]} g6 {[%emt 0:00:08]} 5. Bxc6 {[%emt 0:01:28]} dxc6 {[%emt 0:00:08]} 6. h3 {[%emt 0:00:18]} Bg7 {[%emt 0:00:58]} 7. d3 {[%emt 0:00:04]} Nd7 {[%emt 0:02:42]} 8. Be3 {[%emt 0:00:41]} e5 {[%emt 0:00:33]} 9. O-O {[%emt 0:01:43]} b6 {[%emt 0:01:15]} 10. Nh2 {[%emt 0:00:17]} Nf8 {[%emt 0:14:37]} 11. f4 {[%emt 0:00:13]} exf4 {[%emt 0:00:08]} 12. Bxf4 {[%emt 0:00:06]} Ne6 {[%emt 0:00:06]} 13. Be3 {[%emt 0:01:40]} Nd4 {[%emt 0:01:40]} 14. Qd2 {[%emt 0:00:51]} Be6 {[%emt 0:08:19]} 15. Rae1 {[%emt 0:01:59]} Qc7 {[%emt 0:00:55]} 16. Bf4 {[%emt 0:02:27]} Be5 {[%emt 0:05:24]} 17. Bxe5 {[%emt 0:01:17]} Qxe5 {[%emt 0:00:20]} 18. b3 {[%emt 0:00:23]} h6 {[%emt 0:03:55]} 19. Ne2 {[%emt 0:00:45]} Nxe2+ {[%emt 0:01:17]} 20. Rxe2 {[%emt 0:01:02]} O-O-O {[%emt 0:02:08]} 21. Nf3 {[%emt 0:00:46]} Qg3 {[%emt 0:00:21]} 22. Qc3 {[%emt 0:03:02]} Qc7 {[%emt 0:17:44]} 23. Ref2 {[%emt 0:04:16]} g5 {[%emt 0:07:50]} 24. Qf6 {[%emt 0:03:43]} Qd6 {[%emt 0:07:21]} 25. Ne5 {[%emt 0:02:46]} Rh7 {[%emt 0:00:15]} 26. Nc4 {[%emt 0:01:45]} Qc7 {[%emt 0:03:23]} 27. Qe5 {[%emt 0:02:52]} b5 {[%emt 0:02:18]} 28. Qxc7+ {[%emt 0:01:29]} Kxc7 {[%emt 0:00:03]} 29. Ne5 {[%emt 0:00:23]} Rf8 {[%emt 0:00:03]} 30. Rf6 {[%emt 0:03:52]} Kd6 {[%emt 0:03:29]} 31. Nxc6 {[%emt 0:00:26]} Ra8 {[%emt 0:00:02]} 32. Na5 {[%emt 0:00:07]} Ke5 {[%emt 0:00:59]} 33. c3 {[%emt 0:03:56]} Rc8 {[%emt 0:01:08]} 34. a4 {[%emt 0:01:03]} a6 {[%emt 0:03:11]} 35. axb5 {[%emt 0:00:28]} axb5 {[%emt 0:00:10]} 36. Nb7 {[%emt 0:03:57]} c4 {[%emt 0:00:50]} 37. bxc4 {[%emt 0:01:03]} bxc4 {[%emt 0:00:12]} 38. d4+ {[%emt 0:00:32]} Kxe4 {[%emt 0:00:06]} 39. Nd6+ {[%emt 0:00:14]} Kd3 {[%emt 0:00:17]} 40. R1f3+ {[%emt 0:01:01]} Kc2 {[%emt 0:00:11]} 41. Nxc8 {[%emt 0:01:12]} Bxc8 {[%emt 0:00:10]} 42. Rxf7 {[%emt 0:02:09]} Rxf7 {[%emt 0:00:09]} 43. Rxf7 {[%emt 0:00:02]} Kxc3 {[%emt 0:00:08]} 44. d5 {[%emt 0:00:19]} Kb2 {[%emt 0:01:18]} 45. Rc7 {[%emt 0:00:17]} Ba6 {[%emt 0:00:04]} 46. d6 {[%emt 0:00:06]} 1-0

[Event "14th Chennai GM Open 2023"]
[Site "Chennai"]
[Date "2024.01.02"]
[Round "4.9"]
[White "Jake Shanty"]
[Black "Laxman, R.R."]
[Result "1/2-1/2"]
[ECO "A29"]
[WhiteElo "1903"]
[BlackElo "2338"]
[Annotator "RC"]
[PlyCount "93"]
[EventDate "2023.12.31"]
[EventType "swiss"]
[EventCountry "IND"]
[SourceTitle "playchess.com"]
[Source "ChessBase"]
[SourceQuality "1"]
[TimeControl "5400+30"]

1. c4 {[%emt 0:00:03]} Nf6 {[%emt 0:03:10]} 2. Nc3 {[%emt 0:01:12]} e5 {[%emt 0:00:45]} 3. Nf3 {[%emt 0:00:55]} Nc6 {[%emt 0:00:06]} 4. g3 {[%emt 0:01:52]} Nd4 {[%emt 0:00:29]} 5. Bg2 {[%emt 0:08:10]} Nxf3+ {[%emt 0:00:06]} 6. Bxf3 {[%emt 0:00:08]} Bb4 {[%emt 0:00:15]} 7. Qb3 {[%emt 0:04:03]} Bc5 {[%emt 0:01:33]} 8. d3 {[%emt 0:01:59]} h6 {[%emt 0:01:58]} 9. Bd2 {[%emt 0:03:45]} c6 {[%emt 0:00:17]} 10. O-O {[%emt 0:02:19]} O-O {[%emt 0:01:45]} 11. a3 {[%emt 0:06:52]} Re8 {[%emt 0:01:20]} 12. e4 {[%emt 0:04:37]} d6 {[%emt 0:02:21]} 13. Bg2 {[%emt 0:11:48]} Rb8 {[%emt 0:02:58]} 14. Qc2 {[%emt 0:04:47]} b5 {[%emt 0:01:38]} 15. b4 {[%emt 0:06:55]} Bd4 {[%emt 0:00:16]} 16. cxb5 {[%emt 0:01:41]} cxb5 {[%emt 0:00:03]} 17. Rac1 {[%emt 0:00:18]} Be6 {[%emt 0:00:35]} 18. h3 {[%emt 0:10:07]} d5 {[%emt 0:09:22]} 19. exd5 {[%emt 0:07:50]} Nxd5 {[%emt 0:00:13]} 20. Ne4 {[%emt 0:05:48]} Rc8 {[%emt 0:00:47]} 21. Qb1 {[%emt 0:00:22]} Qb6 {[%emt 0:00:52]} 22. Rxc8 {[%emt 0:01:19]} Rxc8 {[%emt 0:00:02]} 23. Rc1 {[%emt 0:00:39]} Rc7 {[%emt 0:00:25]} 24. Rxc7 {[%emt 0:02:05]} Nxc7 {[%emt 0:00:41]} 25. Qc1 {[%emt 0:00:55]} Bd5 {[%emt 0:00:30]} 26. Be3 {[%emt 0:01:23]} f5 {[%emt 0:00:55]} 27. Bxd4 {[%emt 0:02:13]} exd4 {[%emt 0:00:07]} 28. Nd2 {[%emt 0:00:28]} Bxg2 {[%emt 0:01:53]} 29. Kxg2 {[%emt 0:00:07]} Qb7+ {[%emt 0:00:31]} 30. Kg1 {[%emt 0:02:20]} Ne6 {[%emt 0:00:02]} 31. h4 {[%emt 0:00:19]} Qd5 {[%emt 0:04:26]} 32. Qc2 {[%emt 0:01:23]} g5 {[%emt 0:01:38]} 33. hxg5 {[%emt 0:03:04]} hxg5 {[%emt 0:00:03]} 34. Qb3 {[%emt 0:02:57]} Qc6 {[%emt 0:01:17]} 35. Nf3 {[%emt 0:01:58]} Kg7 {[%emt 0:00:03]} 36. Ne5 {[%emt 0:00:22]} Qd6 {[%emt 0:00:02]} 37. Nf3 {[%emt 0:00:17]} Kf6 {[%emt 0:00:50]} 38. Qc2 {[%emt 0:01:11]} Qd5 {[%emt 0:00:19]} 39. Ne1 {[%emt 0:00:46]} Qb7 {[%emt 0:00:43]} 40. Qc1 {[%emt 0:00:26]} Kg6 {[%emt 0:00:38]} 41. Qc2 {[%emt 0:00:34]} g4 {[%emt 0:00:23]} 42. Ng2 {[%emt 0:00:19]} Kf6 {[%emt 0:00:03]} 43. Nf4 {[%emt 0:00:45]} Nxf4 {[%emt 0:04:51]} 44. gxf4 {[%emt 0:00:07]} Qf3 {[%emt 0:00:13]} 45. Qc7 {[%emt 0:00:41]} Qxd3 {[%emt 0:01:32]} 46. Qd6+ {[%emt 0:00:11]} Kf7 {[%emt 0:00:06]} 47. Qd7+ {[%emt 0:00:10]} 1/2-1/2

[Event "14th Chennai GM Open 2023"]
[Site "Chennai"]
[Date "2024.01.02"]
[Round "4.10"]
[White "Nguyen, Duc Hoa"]
[Black "Sharnarthi Shlok"]
[Result "1-0"]
[ECO "B55"]
[WhiteElo "2322"]
[BlackElo "1832"]
[Annotator "RC"]
[PlyCount "81"]
[EventDate "2023.12.31"]
[EventType "swiss"]
[EventCountry "IND"]
[SourceTitle "playchess.com"]
[Source "ChessBase"]
[SourceQuality "1"]
[TimeControl "5400+30"]

1. e4 {[%emt 0:00:54]} c5 {[%emt 0:02:52]} 2. Nf3 {[%emt 0:00:38]} d6 {[%emt 0:00:17]} 3. d4 {[%emt 0:00:41]} cxd4 {[%emt 0:00:09]} 4. Nxd4 {[%emt 0:00:04]} Nf6 {[%emt 0:00:07]} 5. f3 {[%emt 0:00:12]} g6 {[%emt 0:00:57]} 6. c4 {[%emt 0:02:14]} Bg7 {[%emt 0:00:13]} 7. Nc3 {[%emt 0:00:30]} O-O {[%emt 0:01:05]} 8. Be3 {[%emt 0:00:30]} Nc6 {[%emt 0:00:14]} 9. Nc2 {[%emt 0:00:28]} Be6 {[%emt 0:00:55]} 10. Qd2 {[%emt 0:01:25]} Rc8 {[%emt 0:01:31]} 11. Rc1 {[%emt 0:01:16]} a6 {[%emt 0:02:13]} 12. Be2 {[%emt 0:08:29]} Nd7 {[%emt 0:02:54]} 13. O-O {[%emt 0:03:42]} Nce5 {[%emt 0:00:08]} 14. b3 {[%emt 0:00:53]} Nb8 {[%emt 0:07:54]} 15. Nd4 {[%emt 0:01:34]} Bd7 {[%emt 0:01:03]} 16. Rfd1 {[%emt 0:01:04]} f5 {[%emt 0:01:28]} 17. exf5 {[%emt 0:04:39]} gxf5 {[%emt 0:00:19]} 18. Bh6 {[%emt 0:01:39]} Ng6 {[%emt 0:05:31]} 19. Bxg7 {[%emt 0:05:51]} Kxg7 {[%emt 0:00:53]} 20. f4 {[%emt 0:00:48]} e5 {[%emt 0:04:20]} 21. Nf3 {[%emt 0:07:07]} Qb6+ {[%emt 0:05:13]} 22. Kf1 {[%emt 0:01:03]} Nxf4 {[%emt 0:09:28]} 23. Nd5 {[%emt 0:01:14]} Nxd5 {[%emt 0:01:49]} 24. Qg5+ {[%emt 0:00:06]} Kh8 {[%emt 0:00:43]} 25. Rxd5 {[%emt 0:00:05]} Be6 {[%emt 0:50:44]} 26. Rd2 {[%emt 0:00:11]} e4 {[%emt 0:00:00]} 27. Nh4 {[%emt 0:01:23]} Nd7 {[%emt 0:00:00]} 28. Ng6+ {[%emt 0:00:40]} Kg7 {[%emt 0:00:00]} 29. Nf4+ {[%emt 0:03:05]} Kh8 {[%emt 0:00:00]} 30. Nxe6 {[%emt 0:00:09]} Rf7 {[%emt 0:00:00]} 31. Qf4 {[%emt 0:01:38]} d5 {[%emt 0:00:00]} 32. Ng5 {[%emt 0:00:09]} Rg7 {[%emt 0:00:00]} 33. Rxd5 {[%emt 0:00:09]} Rcg8 {[%emt 0:00:00]} 34. Rxd7 {[%emt 0:00:28]} Rxd7 {[%emt 0:00:11]} 35. Qe5+ {[%emt 0:00:06]} Rgg7 {[%emt 0:00:10]} 36. Qe8+ {[%emt 0:00:07]} Rg8 {[%emt 0:00:06]} 37. Qxd7 {[%emt 0:00:06]} Rxg5 {[%emt 0:00:05]} 38. Qe8+ {[%emt 0:00:05]} Kg7 {[%emt 0:00:08]} 39. Rd1 {[%emt 0:00:08]} Rg6 {[%emt 0:01:43]} 40. Qe7+ {[%emt 0:00:17]} Kh6 {[%emt 0:00:35]} 41. Qh4+ {[%emt 0:00:05]} 1-0

[Event "14th Chennai GM Open 2023"]
[Site "Chennai"]
[Date "2024.01.02"]
[Round "4.11"]
[White "Adhiraj Mitra"]
[Black "Saravana, Krishnan P."]
[Result "0-1"]
[ECO "B15"]
[WhiteElo "1549"]
[BlackElo "2269"]
[Annotator "RC"]
[PlyCount "80"]
[EventDate "2023.12.31"]
[EventType "swiss"]
[EventCountry "IND"]
[SourceTitle "playchess.com"]
[Source "ChessBase"]
[SourceQuality "1"]
[TimeControl "5400+30"]

1. e4 {[%emt 0:00:01]} c6 {[%emt 0:00:40]} 2. d4 {[%emt 0:00:04]} d5 {[%emt 0:00:30]} 3. Nc3 {[%emt 0:00:04]} dxe4 {[%emt 0:01:09]} 4. Nxe4 {[%emt 0:00:07]} Nf6 {[%emt 0:00:49]} 5. Nxf6+ {[%emt 0:00:08]} exf6 {[%emt 0:00:22]} 6. Nf3 {[%emt 0:00:08]} Bd6 {[%emt 0:01:30]} 7. Be2 {[%emt 0:00:13]} O-O {[%emt 0:00:44]} 8. Be3 {[%emt 0:00:28]} Re8 {[%emt 0:01:26]} 9. Qd2 {[%emt 0:00:19]} Nd7 {[%emt 0:01:39]} 10. O-O-O {[%emt 0:00:25]} Nf8 {[%emt 0:01:15]} 11. d5 {[%emt 0:01:54]} c5 {[%emt 0:01:36]} 12. Qc3 {[%emt 0:02:45]} Bd7 {[%emt 0:02:39]} 13. Rhe1 {[%emt 0:03:06]} Qc7 {[%emt 0:00:52]} 14. Nd2 {[%emt 0:02:10]} b5 {[%emt 0:00:56]} 15. Bf3 {[%emt 0:01:02]} b4 {[%emt 0:12:28]} 16. Qd3 {[%emt 0:00:48]} Ng6 {[%emt 0:03:58]} 17. Nc4 {[%emt 0:04:49]} Bb5 {[%emt 0:06:49]} 18. Qb3 {[%emt 0:02:31]} Bxc4 {[%emt 0:03:26]} 19. Qxc4 {[%emt 0:01:02]} a5 {[%emt 0:04:57]} 20. Kb1 {[%emt 0:08:03]} a4 {[%emt 0:01:13]} 21. g3 {[%emt 0:02:51]} Ne5 {[%emt 0:06:30]} 22. Qe2 {[%emt 0:00:26]} c4 {[%emt 0:02:03]} 23. Bg2 {[%emt 0:04:25]} c3 {[%emt 0:02:28]} 24. Bd4 {[%emt 0:00:48]} Reb8 {[%emt 0:03:33]} 25. Bxe5 {[%emt 0:01:00]} fxe5 {[%emt 0:00:28]} 26. b3 {[%emt 0:00:25]} g6 {[%emt 0:06:26]} 27. Rc1 {[%emt 0:01:25]} Ra5 {[%emt 0:00:44]} 28. Qd3 {[%emt 0:02:52]} Qa7 {[%emt 0:02:36]} 29. Re2 {[%emt 0:01:45]} Ra8 {[%emt 0:00:34]} 30. a3 {[%emt 0:00:16]} axb3 {[%emt 0:02:25]} 31. cxb3 {[%emt 0:00:11]} Rxa3 {[%emt 0:00:09]} 32. Kc2 {[%emt 0:00:13]} Rxb3 {[%emt 0:01:01]} 33. Kd1 {[%emt 0:00:01]} Ra3 {[%emt 0:01:40]} 34. Qc4 {[%emt 0:01:16]} Ra1 {[%emt 0:00:36]} 35. Rec2 {[%emt 0:00:34]} Rxc1+ {[%emt 0:00:21]} 36. Rxc1 {[%emt 0:00:01]} Qxf2 {[%emt 0:00:11]} 37. Qe2 {[%emt 0:00:18]} Qd4+ {[%emt 0:02:51]} 38. Ke1 {[%emt 0:00:16]} b3 {[%emt 0:00:07]} 39. Rd1 {[%emt 0:00:09]} Qg1+ {[%emt 0:00:12]} 40. Bf1 {[%emt 0:00:07]} c2 {[%emt 0:00:08]} 0-1

[Event "14th Chennai GM Open 2023"]
[Site "Chennai"]
[Date "2024.01.02"]
[Round "4.12"]
[White "Ajay Karthikeyan"]
[Black "Haridev S"]
[Result "1-0"]
[ECO "A05"]
[WhiteElo "2423"]
[BlackElo "1647"]
[Annotator "RC"]
[PlyCount "159"]
[EventDate "2023.12.31"]
[EventType "swiss"]
[EventCountry "IND"]
[SourceTitle "playchess.com"]
[Source "ChessBase"]
[SourceQuality "1"]
[TimeControl "5400+30"]

1. Nf3 {[%emt 0:00:03]} Nf6 {[%emt 0:01:06]} 2. b3 {[%emt 0:00:12]} c5 {[%emt 0:03:21]} 3. Bb2 {[%emt 0:00:11]} Nc6 {[%emt 0:00:25]} 4. e3 {[%emt 0:00:54]} e6 {[%emt 0:00:41]} 5. Bb5 {[%emt 0:00:53]} Qb6 {[%emt 0:04:58]} 6. Na3 {[%emt 0:02:15]} a6 {[%emt 1:22:59]} 7. Nc4 {[%emt 0:00:05]} Qc7 {[%emt 0:00:00]} 8. Bxc6 {[%emt 0:00:03]} Qxc6 {[%emt 0:00:00]} 9. a4 {[%emt 0:00:01]} d5 {[%emt 0:00:00]} 10. Nce5 {[%emt 0:00:21]} Qc7 {[%emt 0:00:00]} 11. Ng5 {[%emt 0:00:01]} Be7 {[%emt 0:00:00]} 12. Ngxf7 {[%emt 0:01:04]} O-O {[%emt 0:00:00]} 13. Ng5 {[%emt 0:00:01]} Bd6 {[%emt 0:00:00]} 14. f4 {[%emt 0:00:31]} d4 {[%emt 0:00:00]} 15. Nc4 {[%emt 0:05:02]} Bd7 {[%emt 0:00:00]} 16. a5 {[%emt 0:05:48]} e5 {[%emt 0:00:00]} 17. fxe5 {[%emt 0:00:07]} Bxe5 {[%emt 0:00:00]} 18. Qe2 {[%emt 0:00:20]} Bg3+ {[%emt 0:00:00]} 19. Kd1 {[%emt 0:00:02]} Bg4 {[%emt 0:00:00]} 20. Nf3 {[%emt 0:02:29]} Ne4 {[%emt 0:00:00]} 21. Kc1 {[%emt 0:01:52]} Bxh2 {[%emt 0:00:00]} 22. Nb6 {[%emt 0:00:35]} Rae8 {[%emt 0:00:00]} 23. Qc4+ {[%emt 0:13:44]} Be6 {[%emt 0:00:00]} 24. Qa4 {[%emt 0:00:01]} Bg3 {[%emt 0:08:27]} 25. exd4 {[%emt 0:07:03]} Qf4 {[%emt 0:01:03]} 26. dxc5 {[%emt 0:02:17]} Rd8 {[%emt 0:00:00]} 27. Kb1 {[%emt 0:00:32]} Nxd2+ {[%emt 0:00:23]} 28. Nxd2 {[%emt 0:00:02]} Rxd2 {[%emt 0:00:06]} 29. Qxf4 {[%emt 0:00:18]} Bxf4 {[%emt 0:00:20]} 30. Ra4 {[%emt 0:01:32]} Rxg2 {[%emt 0:00:20]} 31. Re1 {[%emt 0:04:20]} Bf5 {[%emt 0:01:14]} 32. Rc4 {[%emt 0:00:06]} Bd2 {[%emt 0:00:28]} 33. Rd1 {[%emt 0:00:01]} Bxa5 {[%emt 0:00:33]} 34. Nd5 {[%emt 0:00:02]} Kh8 {[%emt 0:00:35]} 35. Ne3 {[%emt 0:01:13]} Rf2 {[%emt 0:00:25]} 36. Rg1 {[%emt 0:07:10]} Bg6 {[%emt 0:00:15]} 37. c6 {[%emt 0:05:49]} bxc6 {[%emt 0:00:32]} 38. Rxc6 {[%emt 0:00:24]} Bd2 {[%emt 0:00:40]} 39. Nd5 {[%emt 0:00:52]} a5 {[%emt 0:00:38]} 40. Ne7 {[%emt 0:02:38]} Rf1+ {[%emt 0:00:28]} 41. Rxf1 {[%emt 0:00:01]} Rxf1+ {[%emt 0:00:01]} 42. Ka2 {[%emt 0:00:01]} Rf8 {[%emt 0:01:01]} 43. Rc7 {[%emt 0:00:35]} Bh6 {[%emt 0:00:19]} 44. c4 {[%emt 0:02:47]} Bc2 {[%emt 0:00:41]} 45. Bc3 {[%emt 0:03:43]} a4 {[%emt 0:00:25]} 46. bxa4 {[%emt 0:00:06]} Bf4 {[%emt 0:00:31]} 47. Ra7 {[%emt 0:03:41]} Be3 {[%emt 0:00:32]} 48. Rb7 {[%emt 0:00:40]} h5 {[%emt 0:00:31]} 49. Rb5 {[%emt 0:02:58]} Kh7 {[%emt 0:00:30]} 50. Rxh5+ {[%emt 0:00:38]} Bh6 {[%emt 0:00:01]} 51. a5 {[%emt 0:00:36]} Rf7 {[%emt 0:01:00]} 52. Nd5 {[%emt 0:00:23]} Bd3 {[%emt 0:00:28]} 53. Kb3 {[%emt 0:00:28]} g5 {[%emt 0:00:28]} 54. Bd2 {[%emt 0:01:26]} Kg6 {[%emt 0:00:22]} 55. Rh3 {[%emt 0:00:13]} Bf5 {[%emt 0:00:35]} 56. Rg3 {[%emt 0:00:09]} g4 {[%emt 0:00:37]} 57. Bxh6 {[%emt 0:05:02]} Kxh6 {[%emt 0:00:07]} 58. Ne3 {[%emt 0:00:11]} Rb7+ {[%emt 0:00:23]} 59. Ka3 {[%emt 0:00:56]} Kg5 {[%emt 0:00:02]} 60. Nxf5 {[%emt 0:00:06]} Kxf5 {[%emt 0:00:01]} 61. Rg1 {[%emt 0:00:47]} Ke5 {[%emt 0:01:05]} 62. Rxg4 {[%emt 0:00:10]} Kd6 {[%emt 0:00:01]} 63. Rg5 {[%emt 0:00:51]} Kc6 {[%emt 0:00:26]} 64. a6 {[%emt 0:03:56]} Rb1 {[%emt 0:00:31]} 65. Ra5 {[%emt 0:00:05]} Ra1+ {[%emt 0:01:51]} 66. Kb4 {[%emt 0:00:03]} Rb1+ {[%emt 0:00:03]} 67. Kc3 {[%emt 0:00:05]} Rb8 {[%emt 0:00:11]} 68. a7 {[%emt 0:00:14]} Ra8 {[%emt 0:00:03]} 69. Kb4 {[%emt 0:00:04]} Kb6 {[%emt 0:00:14]} 70. c5+ {[%emt 0:00:08]} Kc6 {[%emt 0:00:01]} 71. Ra6+ {[%emt 0:00:05]} Kc7 {[%emt 0:01:29]} 72. Kb5 {[%emt 0:00:08]} Kb7 {[%emt 0:00:05]} 73. c6+ {[%emt 0:00:03]} Kc7 {[%emt 0:00:02]} 74. Ra2 {[%emt 0:00:10]} Re8 {[%emt 0:01:53]} 75. a8=Q {[%emt 0:00:07]} Re5+ {[%emt 0:00:05]} 76. Kc4 {[%emt 0:00:04]} Rc5+ {[%emt 0:00:06]} 77. Kd3 {[%emt 0:00:05]} Rd5+ {[%emt 0:00:06]} 78. Ke4 {[%emt 0:00:05]} Rc5 {[%emt 0:00:06]} 79. Qb7+ {[%emt 0:00:05]} Kd6 {[%emt 0:00:05]} 80. Qd7# {[%emt 0:00:03]} 1-0